[Event "Titled Tuesday Blitz March 08 Early 2022"]
[White "Yuan, Qingyu"]
[Black "Jacobson, Aaron"]
[WhiteFideId "8609772"]
[BlackFideId "2089912"]
[WhiteElo "2359"]
[BlackElo "2265"]
[Result "1/2-1/2"]
[Round "02"]
[TimeControl "180+1"]
[Date "2022.03.09"]
[WhiteClock "0:00:05"]
[BlackClock "0:00:08"]

1. e4 {[%clk 0:03:00]}  d5 {[%clk 0:02:56]} 2. exd5 {[%clk 0:02:59]}  Nf6 {[%clk 0:02:56]} 3. Nf3 {[%clk 0:02:59]}  Bg4 {[%clk 0:02:57]} 4. h3 {[%clk 0:02:45]}  Bxf3 {[%clk 0:02:56]} 5. Qxf3 {[%clk 0:02:45]}  Qxd5 {[%clk 0:02:57]} 6. Qxd5 {[%clk 0:02:42]}  Nxd5 {[%clk 0:02:58]} 7. d4 {[%clk 0:02:36]}  Nb4 {[%clk 0:02:54]} 8. Na3 {[%clk 0:02:34]}  e6 {[%clk 0:02:53]} 9. c3 {[%clk 0:02:30]}  Nd5 {[%clk 0:02:53]} 10. Nc4 {[%clk 0:02:30]}  c5 {[%clk 0:02:53]} 11. Ne5 {[%clk 0:02:19]}  cxd4 {[%clk 0:02:41]} 12. Bb5+ {[%clk 0:02:17]}  Ke7 {[%clk 0:02:41]} 13. cxd4 {[%clk 0:02:12]}  f6 {[%clk 0:02:31]} 14. Nf3 {[%clk 0:02:10]}  Kf7 {[%clk 0:02:27]} 15. O-O {[%clk 0:02:10]}  a6 {[%clk 0:02:21]} 16. Ba4 {[%clk 0:02:06]}  Bd6 {[%clk 0:02:09]} 17. Bd2 {[%clk 0:02:03]}  b5 {[%clk 0:01:41]} 18. Bb3 {[%clk 0:02:03]}  Nd7 {[%clk 0:01:25]} 19. Rfe1 {[%clk 0:01:44]}  Rhc8 {[%clk 0:01:21]} 20. Re2 {[%clk 0:01:43]}  N7b6 {[%clk 0:01:16]} 21. Rae1 {[%clk 0:01:38]}  Re8 {[%clk 0:01:16]} 22. Rc1 {[%clk 0:01:20]}  Rac8 {[%clk 0:01:15]} 23. Ree1 {[%clk 0:01:21]}  Nc4 {[%clk 0:00:34]} 24. Bxc4 {[%clk 0:01:19]}  bxc4 {[%clk 0:00:34]} 25. Rc2 {[%clk 0:01:17]}  Rc6 {[%clk 0:00:35]} 26. Rec1 {[%clk 0:01:17]}  Rec8 {[%clk 0:00:35]} 27. g3 {[%clk 0:01:09]}  Bb4 {[%clk 0:00:32]} 28. a3 {[%clk 0:01:05]}  c3 {[%clk 0:00:08]} 29. bxc3 {[%clk 0:00:48]}  Bxa3 {[%clk 0:00:08]} 30. Ra1 {[%clk 0:00:30]}  Be7 {[%clk 0:00:03]} 31. Kg2 {[%clk 0:00:28]}  Nxc3 {[%clk 0:00:03]} 32. Rac1 {[%clk 0:00:17]}  Bb4 {[%clk 0:00:04]} 33. Ng1 {[%clk 0:00:17]}  Ba3 {[%clk 0:00:03]} 34. Ra1 {[%clk 0:00:16]}  Nb5 {[%clk 0:00:03]} 35. Rca2 {[%clk 0:00:13]}  Be7 {[%clk 0:00:03]} 36. Nf3 {[%clk 0:00:13]}  Rd8 {[%clk 0:00:03]} 37. Be3 {[%clk 0:00:12]}  Ra8 {[%clk 0:00:02]} 38. Rb1 {[%clk 0:00:12]}  Nc7 {[%clk 0:00:03]} 39. Rb7 {[%clk 0:00:11]}  Nd5 {[%clk 0:00:03]} 40. Bd2 {[%clk 0:00:11]}  a5 {[%clk 0:00:03]} 41. Rxa5 {[%clk 0:00:11]}  Rxa5 {[%clk 0:00:03]} 42. Bxa5 {[%clk 0:00:11]}  Rc2 {[%clk 0:00:03]} 43. Bd8 {[%clk 0:00:11]}  Ne3+ {[%clk 0:00:02]} 44. Kg1 {[%clk 0:00:12]}  Rc1+ {[%clk 0:00:03]} 45. Kh2 {[%clk 0:00:12]}  Nd5 {[%clk 0:00:03]} 46. g4 {[%clk 0:00:08]}  Rc3 {[%clk 0:00:03]} 47. Kg2 {[%clk 0:00:08]}  Nf4+ {[%clk 0:00:03]} 48. Kg3 {[%clk 0:00:08]}  Nd5 {[%clk 0:00:03]} 49. Kg2 {[%clk 0:00:08]}  h6 {[%clk 0:00:04]} 50. Bxe7 {[%clk 0:00:05]}  Nxe7 {[%clk 0:00:05]} 51. Nd2 {[%clk 0:00:04]}  Rd3 {[%clk 0:00:05]} 52. Nf3 {[%clk 0:00:03]}  Kf8 {[%clk 0:00:06]} 53. Rb8+ {[%clk 0:00:03]}  Kf7 {[%clk 0:00:06]} 54. Rb7 {[%clk 0:00:04]}  Kf8 {[%clk 0:00:07]} 55. Rb8+ {[%clk 0:00:04]}  Kf7 {[%clk 0:00:08]} 56. Rb7 {[%clk 0:00:05]} 1/2-1/2


[Site "https://www.chess.com"]

[Event "Titled Tuesday Blitz March 08 Early 2022"]
[White "Zhu, Jiner"]
[Black "Taboas Rodriguez, Daniel"]
[WhiteFideId "8608059"]
[BlackFideId "2208466"]
[WhiteElo "2281"]
[BlackElo "2429"]
[Result "0-1"]
[Round "02"]
[TimeControl "180+1"]
[Date "2022.03.08"]
[WhiteClock "0:00:07"]
[BlackClock "0:01:20"]

1. e4 {[%clk 0:03:00]}  e6 {[%clk 0:02:59]} 2. d4 {[%clk 0:02:59]}  d5 {[%clk 0:03:00]} 3. Nc3 {[%clk 0:02:59]}  Nc6 {[%clk 0:03:01]} 4. Nf3 {[%clk 0:02:55]}  Nf6 {[%clk 0:03:01]} 5. exd5 {[%clk 0:02:49]}  exd5 {[%clk 0:03:00]} 6. Bb5 {[%clk 0:02:48]}  Bd7 {[%clk 0:03:00]} 7. O-O {[%clk 0:02:47]}  Be7 {[%clk 0:03:00]} 8. Re1 {[%clk 0:02:44]}  O-O {[%clk 0:03:00]} 9. a3 {[%clk 0:02:43]}  Re8 {[%clk 0:02:59]} 10. h3 {[%clk 0:02:42]}  h6 {[%clk 0:02:59]} 11. Ne2 {[%clk 0:02:37]}  a6 {[%clk 0:02:54]} 12. Bd3 {[%clk 0:02:38]}  Bd6 {[%clk 0:02:53]} 13. c3 {[%clk 0:02:25]}  Ne7 {[%clk 0:02:47]} 14. Bf4 {[%clk 0:02:23]}  Bf5 {[%clk 0:02:47]} 15. Bxf5 {[%clk 0:02:19]}  Nxf5 {[%clk 0:02:47]} 16. Bxd6 {[%clk 0:02:16]}  Qxd6 {[%clk 0:02:48]} 17. Qd3 {[%clk 0:02:11]}  Ne4 {[%clk 0:02:47]} 18. Nd2 {[%clk 0:02:02]}  Re7 {[%clk 0:02:38]} 19. Nf1 {[%clk 0:01:41]}  Rae8 {[%clk 0:02:23]} 20. Rad1 {[%clk 0:01:30]}  Qf6 {[%clk 0:02:14]} 21. Nf4 {[%clk 0:01:10]}  c6 {[%clk 0:02:09]} 22. Nh5 {[%clk 0:00:43]}  Qg5 {[%clk 0:02:04]} 23. Nhg3 {[%clk 0:00:42]}  Nh4 {[%clk 0:01:47]} 24. Qb1 {[%clk 0:00:25]}  f5 {[%clk 0:01:38]} 25. Ne3 {[%clk 0:00:07]}  Nxg3 {[%clk 0:01:19]} 26. fxg3 {[%clk 0:00:07]}  Qxg3 {[%clk 0:01:20]} 0-1


[Site "https://www.chess.com"]

[Event "Titled Tuesday Blitz March 08 Early 2022"]
[White "Zierk, Steven"]
[Black "Vlassov, Nikolai"]
[WhiteFideId "2034255"]
[BlackFideId "4103360"]
[WhiteElo "2494"]
[BlackElo "2407"]
[Result "1-0"]
[Round "02"]
[TimeControl "180+1"]
[Date "2022.03.08"]
[WhiteClock "0:00:03"]
[BlackClock "0:00:04"]

1. e4 {[%clk 0:02:59]}  Nc6 {[%clk 0:02:59]} 2. d4 {[%clk 0:02:58]}  d5 {[%clk 0:02:59]} 3. Nc3 {[%clk 0:02:59]}  Nf6 {[%clk 0:02:58]} 4. e5 {[%clk 0:02:58]}  Nd7 {[%clk 0:02:59]} 5. Nxd5 {[%clk 0:02:58]}  Ndb8 {[%clk 0:02:59]} 6. Ne3 {[%clk 0:02:58]}  Qxd4 {[%clk 0:02:59]} 7. Qxd4 {[%clk 0:02:58]}  Nxd4 {[%clk 0:03:00]} 8. f4 {[%clk 0:02:59]}  c6 {[%clk 0:02:57]} 9. Bd3 {[%clk 0:02:53]}  g6 {[%clk 0:02:56]} 10. Ne2 {[%clk 0:02:44]}  Nxe2 {[%clk 0:02:51]} 11. Kxe2 {[%clk 0:02:45]}  Bg7 {[%clk 0:02:48]} 12. h4 {[%clk 0:02:40]}  h5 {[%clk 0:02:40]} 13. b4 {[%clk 0:02:22]}  a5 {[%clk 0:02:38]} 14. b5 {[%clk 0:02:21]}  cxb5 {[%clk 0:02:35]} 15. Bxb5+ {[%clk 0:02:20]}  Bd7 {[%clk 0:02:35]} 16. c4 {[%clk 0:02:15]}  Nc6 {[%clk 0:02:34]} 17. Nd5 {[%clk 0:02:14]}  O-O {[%clk 0:02:28]} 18. Kf2 {[%clk 0:01:50]}  f6 {[%clk 0:02:10]} 19. exf6 {[%clk 0:01:44]}  exf6 {[%clk 0:02:09]} 20. Ba3 {[%clk 0:01:44]}  Rf7 {[%clk 0:02:08]} 21. Nb6 {[%clk 0:01:37]}  Re8 {[%clk 0:02:05]} 22. Nxd7 {[%clk 0:01:35]}  Rxd7 {[%clk 0:02:04]} 23. Rad1 {[%clk 0:01:35]}  Red8 {[%clk 0:01:59]} 24. Rd5 {[%clk 0:01:32]}  Bf8 {[%clk 0:01:45]} 25. Bb2 {[%clk 0:01:28]}  Kf7 {[%clk 0:01:33]} 26. Rhd1 {[%clk 0:01:16]}  Bc5+ {[%clk 0:01:32]} 27. Kg3 {[%clk 0:01:13]}  Rxd5 {[%clk 0:01:32]} 28. cxd5 {[%clk 0:01:06]}  Nb4 {[%clk 0:01:28]} 29. Bc4 {[%clk 0:00:51]}  Bd6 {[%clk 0:01:21]} 30. a3 {[%clk 0:00:34]}  Rc8 {[%clk 0:01:12]} 31. Rc1 {[%clk 0:00:19]}  Na6 {[%clk 0:01:04]} 32. Kf3 {[%clk 0:00:17]}  Nc5 {[%clk 0:01:01]} 33. Bb5 {[%clk 0:00:17]}  Rc7 {[%clk 0:00:56]} 34. Re1 {[%clk 0:00:17]}  Re7 {[%clk 0:00:43]} 35. Rxe7+ {[%clk 0:00:15]}  Kxe7 {[%clk 0:00:43]} 36. g4 {[%clk 0:00:15]}  f5 {[%clk 0:00:34]} 37. g5 {[%clk 0:00:13]}  Ne4 {[%clk 0:00:31]} 38. a4 {[%clk 0:00:12]}  b6 {[%clk 0:00:29]} 39. Bd4 {[%clk 0:00:12]}  Bc5 {[%clk 0:00:29]} 40. Ke3 {[%clk 0:00:08]}  Kd6 {[%clk 0:00:27]} 41. Be8 {[%clk 0:00:07]}  Kxd5 {[%clk 0:00:20]} 42. Bf7+ {[%clk 0:00:07]}  Kd6 {[%clk 0:00:19]} 43. Bxg6 {[%clk 0:00:08]}  Nc3 {[%clk 0:00:14]} 44. Bxh5 {[%clk 0:00:05]}  Nd5+ {[%clk 0:00:13]} 45. Kf3 {[%clk 0:00:02]}  Bxd4 {[%clk 0:00:13]} 46. Bg6 {[%clk 0:00:02]}  Ne7 {[%clk 0:00:13]} 47. Bf7 {[%clk 0:00:02]}  b5 {[%clk 0:00:12]} 48. axb5 {[%clk 0:00:02]}  a4 {[%clk 0:00:13]} 49. h5 {[%clk 0:00:02]}  a3 {[%clk 0:00:09]} 50. h6 {[%clk 0:00:03]}  Nc8 {[%clk 0:00:09]} 51. g6 {[%clk 0:00:03]}  Ke7 {[%clk 0:00:09]} 52. Ba2 {[%clk 0:00:02]}  Kf8 {[%clk 0:00:06]} 53. Ke2 {[%clk 0:00:02]}  Bb2 {[%clk 0:00:04]} 54. Kd3 {[%clk 0:00:02]}  Bc1 {[%clk 0:00:04]} 55. g7+ {[%clk 0:00:01]}  Ke7 {[%clk 0:00:04]} 56. g8=Q {[%clk 0:00:02]}  Nd6 {[%clk 0:00:04]} 57. Qe6+ {[%clk 0:00:03]} 1-0


[Site "https://www.chess.com"]

[Event "Titled Tuesday Blitz March 08 Early 2022"]
[White "parintele_chess"]
[Black "Batsiashvili, Nino"]
[BlackFideId "13602993"]
[WhiteElo "2199"]
[BlackElo "2192"]
[Result "1-0"]
[Round "02"]
[TimeControl "180+1"]
[Date "2022.03.09"]
[WhiteClock "0:00:03"]
[BlackClock "0:00:01"]

1. d4 {[%clk 0:02:36]}  d5 {[%clk 0:02:57]} 2. Bf4 {[%clk 0:02:35]}  c5 {[%clk 0:02:55]} 3. e3 {[%clk 0:02:35]}  Nc6 {[%clk 0:02:54]} 4. c3 {[%clk 0:02:31]}  Qb6 {[%clk 0:02:54]} 5. Qb3 {[%clk 0:02:30]}  c4 {[%clk 0:02:48]} 6. Qc2 {[%clk 0:02:24]}  Bf5 {[%clk 0:02:47]} 7. Qc1 {[%clk 0:02:23]}  e6 {[%clk 0:02:47]} 8. Nf3 {[%clk 0:02:22]}  h6 {[%clk 0:02:43]} 9. Nbd2 {[%clk 0:02:19]}  g5 {[%clk 0:02:43]} 10. Bg3 {[%clk 0:02:18]}  f6 {[%clk 0:02:43]} 11. Be2 {[%clk 0:02:16]}  h5 {[%clk 0:02:38]} 12. h3 {[%clk 0:02:13]}  h4 {[%clk 0:02:38]} 13. Bh2 {[%clk 0:02:13]}  Qd8 {[%clk 0:02:33]} 14. Bd1 {[%clk 0:02:03]}  b5 {[%clk 0:02:32]} 15. Bc2 {[%clk 0:02:02]}  Nh6 {[%clk 0:02:31]} 16. e4 {[%clk 0:01:56]}  dxe4 {[%clk 0:02:25]} 17. Bxe4 {[%clk 0:01:57]}  Rc8 {[%clk 0:02:14]} 18. O-O {[%clk 0:01:47]}  Bd6 {[%clk 0:02:14]} 19. Bxf5 {[%clk 0:01:43]}  Nxf5 {[%clk 0:02:14]} 20. Ne4 {[%clk 0:01:42]}  Bxh2+ {[%clk 0:02:10]} 21. Nxh2 {[%clk 0:01:43]}  Kf7 {[%clk 0:02:09]} 22. Ng4 {[%clk 0:01:14]}  Kg6 {[%clk 0:01:58]} 23. Nexf6 {[%clk 0:01:10]}  Rf8 {[%clk 0:01:50]} 24. Ne4 {[%clk 0:01:08]}  Nh6 {[%clk 0:01:41]} 25. Nxh6 {[%clk 0:01:03]}  Kxh6 {[%clk 0:01:42]} 26. Nc5 {[%clk 0:01:02]}  Rf6 {[%clk 0:01:35]} 27. f4 {[%clk 0:00:54]}  Rg6 {[%clk 0:01:18]} 28. fxg5+ {[%clk 0:00:48]}  Qxg5 {[%clk 0:01:19]} 29. Qxg5+ {[%clk 0:00:46]}  Kxg5 {[%clk 0:01:20]} 30. Rae1 {[%clk 0:00:45]}  Nd8 {[%clk 0:01:13]} 31. Re5+ {[%clk 0:00:40]}  Kh6 {[%clk 0:01:12]} 32. Rf4 {[%clk 0:00:37]}  Kg7 {[%clk 0:00:53]} 33. Rxh4 {[%clk 0:00:34]}  Rc6 {[%clk 0:00:50]} 34. Rhe4 {[%clk 0:00:32]}  a5 {[%clk 0:00:49]} 35. a3 {[%clk 0:00:28]}  b4 {[%clk 0:00:47]} 36. axb4 {[%clk 0:00:28]}  axb4 {[%clk 0:00:47]} 37. Re1 {[%clk 0:00:23]}  bxc3 {[%clk 0:00:41]} 38. bxc3 {[%clk 0:00:24]}  Rb6 {[%clk 0:00:42]} 39. d5 {[%clk 0:00:18]}  exd5 {[%clk 0:00:39]} 40. Rxd5 {[%clk 0:00:19]}  Nf7 {[%clk 0:00:36]} 41. Rd2 {[%clk 0:00:13]}  Ng5 {[%clk 0:00:33]} 42. Kh2 {[%clk 0:00:10]}  Rbc6 {[%clk 0:00:23]} 43. Ne4 {[%clk 0:00:10]}  Rb6 {[%clk 0:00:20]} 44. Nxg5 {[%clk 0:00:10]}  Rxg5 {[%clk 0:00:21]} 45. Re7+ {[%clk 0:00:10]}  Kf6 {[%clk 0:00:20]} 46. Rc7 {[%clk 0:00:10]}  Rb1 {[%clk 0:00:16]} 47. Rxc4 {[%clk 0:00:10]}  Re5 {[%clk 0:00:17]} 48. Rf4+ {[%clk 0:00:09]}  Kg5 {[%clk 0:00:17]} 49. Rg4+ {[%clk 0:00:09]}  Kf6 {[%clk 0:00:17]} 50. Rf2+ {[%clk 0:00:09]}  Ke6 {[%clk 0:00:17]} 51. Kg3 {[%clk 0:00:09]}  Re3+ {[%clk 0:00:17]} 52. Rf3 {[%clk 0:00:10]}  Re2 {[%clk 0:00:17]} 53. Rff4 {[%clk 0:00:08]}  Kd6 {[%clk 0:00:15]} 54. Rd4+ {[%clk 0:00:08]}  Kc5 {[%clk 0:00:15]} 55. Rc4+ {[%clk 0:00:08]}  Kd5 {[%clk 0:00:15]} 56. Rgd4+ {[%clk 0:00:07]}  Ke5 {[%clk 0:00:15]} 57. Rc5+ {[%clk 0:00:08]}  Ke6 {[%clk 0:00:15]} 58. Rf4 {[%clk 0:00:06]}  Rbb2 {[%clk 0:00:14]} 59. Kg4 {[%clk 0:00:03]}  Rxg2+ {[%clk 0:00:13]} 60. Kh5 {[%clk 0:00:03]}  Rg3 {[%clk 0:00:11]} 61. h4 {[%clk 0:00:03]}  Rc2 {[%clk 0:00:10]} 62. Re4+ {[%clk 0:00:03]}  Kd6 {[%clk 0:00:10]} 63. Rg5 {[%clk 0:00:03]}  Rcxc3 {[%clk 0:00:06]} 64. Rxg3 {[%clk 0:00:03]}  Rxg3 {[%clk 0:00:07]} 65. Rf4 {[%clk 0:00:04]}  Ke6 {[%clk 0:00:07]} 66. Kh6 {[%clk 0:00:04]}  Ke7 {[%clk 0:00:06]} 67. h5 {[%clk 0:00:04]}  Rg1 {[%clk 0:00:06]} 68. Kh7 {[%clk 0:00:04]}  Rg2 {[%clk 0:00:06]} 69. h6 {[%clk 0:00:05]}  Rg1 {[%clk 0:00:07]} 70. Kh8 {[%clk 0:00:05]}  Rg2 {[%clk 0:00:07]} 71. h7 {[%clk 0:00:06]}  Rg1 {[%clk 0:00:07]} 72. Rf5 {[%clk 0:00:04]}  Rg2 {[%clk 0:00:07]} 73. Rf4 {[%clk 0:00:03]}  Rg1 {[%clk 0:00:07]} 74. Ra4 {[%clk 0:00:03]}  Kf7 {[%clk 0:00:06]} 75. Ra7+ {[%clk 0:00:04]}  Kf8 {[%clk 0:00:07]} 76. Ra8+ {[%clk 0:00:04]}  Kf7 {[%clk 0:00:07]} 77. Rg8 {[%clk 0:00:04]}  Rh1 {[%clk 0:00:06]} 78. Rg2 {[%clk 0:00:03]}  Ra1 {[%clk 0:00:04]} 79. Rf2+ {[%clk 0:00:03]}  Kg6 {[%clk 0:00:04]} 80. Rg2+ {[%clk 0:00:01]}  Kf7 {[%clk 0:00:05]} 81. Rf2+ {[%clk 0:00:01]}  Ke7 {[%clk 0:00:04]} 82. Kg8 {[%clk 0:00:01]}  Rg1+ {[%clk 0:00:04]} 83. Kh8 {[%clk 0:00:01]}  Rg3 {[%clk 0:00:04]} 84. Re2+ {[%clk 0:00:01]}  Kf7 {[%clk 0:00:03]} 85. Re4 {[%clk 0:00:01]}  Rg2 {[%clk 0:00:03]} 86. Rf4+ {[%clk 0:00:02]}  Ke7 {[%clk 0:00:03]} 87. Rf3 {[%clk 0:00:01]}  Rg1 {[%clk 0:00:03]} 88. Ra3 {[%clk 0:00:01]}  Kf7 {[%clk 0:00:03]} 89. Ra7+ {[%clk 0:00:01]}  Kf8 {[%clk 0:00:03]} 90. Ra8+ {[%clk 0:00:02]}  Kf7 {[%clk 0:00:03]} 91. Rg8 {[%clk 0:00:03]}  Rd1 {[%clk 0:00:01]} 92. Rg4 {[%clk 0:00:02]}  Rd8+ {[%clk 0:00:01]} 93. Rg8 {[%clk 0:00:03]} 1-0


[Site "https://www.chess.com"]

[Event "Titled Tuesday Blitz March 08 Early 2022"]
[White "Abarca Gonzalez, Nicolas"]
[Black "Shuvalov, Evgenij"]
[WhiteFideId "3409422"]
[BlackFideId "4187237"]
[WhiteElo "2504"]
[BlackElo "2151"]
[Result "1-0"]
[Round "03"]
[TimeControl "180+1"]
[Date "2022.03.09"]
[WhiteClock "0:00:17"]
[BlackClock "0:00:16"]

1. e4 {[%clk 0:03:00]}  e6 {[%clk 0:02:59]} 2. d4 {[%clk 0:03:00]}  d5 {[%clk 0:02:59]} 3. exd5 {[%clk 0:03:01]}  exd5 {[%clk 0:02:58]} 4. c4 {[%clk 0:03:02]}  Nf6 {[%clk 0:02:57]} 5. Nc3 {[%clk 0:03:02]}  Be7 {[%clk 0:02:57]} 6. Nf3 {[%clk 0:03:03]}  Nc6 {[%clk 0:02:52]} 7. cxd5 {[%clk 0:03:04]}  Nxd5 {[%clk 0:02:52]} 8. Bd3 {[%clk 0:03:05]}  Bg4 {[%clk 0:02:48]} 9. Be4 {[%clk 0:03:04]}  Nf6 {[%clk 0:02:40]} 10. Bxc6+ {[%clk 0:03:02]}  bxc6 {[%clk 0:02:41]} 11. h3 {[%clk 0:03:01]}  Bxf3 {[%clk 0:02:38]} 12. Qxf3 {[%clk 0:03:01]}  O-O {[%clk 0:02:38]} 13. Qxc6 {[%clk 0:02:50]}  Qxd4 {[%clk 0:02:37]} 14. O-O {[%clk 0:02:50]}  Bd6 {[%clk 0:02:28]} 15. Nb5 {[%clk 0:02:32]}  Qe5 {[%clk 0:02:27]} 16. Nxd6 {[%clk 0:02:29]}  Qxd6 {[%clk 0:02:28]} 17. Qf3 {[%clk 0:02:23]}  Nd5 {[%clk 0:02:21]} 18. b3 {[%clk 0:02:15]}  Qf6 {[%clk 0:02:13]} 19. Ba3 {[%clk 0:02:05]}  Qxf3 {[%clk 0:02:11]} 20. gxf3 {[%clk 0:01:58]}  Rfc8 {[%clk 0:02:07]} 21. Rac1 {[%clk 0:01:54]}  c6 {[%clk 0:02:07]} 22. Rc5 {[%clk 0:01:47]}  Nf4 {[%clk 0:01:58]} 23. Kh2 {[%clk 0:01:46]}  a5 {[%clk 0:01:47]} 24. Rd1 {[%clk 0:01:29]}  Ne6 {[%clk 0:01:37]} 25. Rc4 {[%clk 0:01:27]}  g6 {[%clk 0:01:18]} 26. Rd6 {[%clk 0:01:22]}  c5 {[%clk 0:01:16]} 27. f4 {[%clk 0:01:19]}  Rd8 {[%clk 0:01:12]} 28. Rxd8+ {[%clk 0:01:14]}  Rxd8 {[%clk 0:01:13]} 29. Bxc5 {[%clk 0:01:14]}  Rd2 {[%clk 0:01:02]} 30. a3 {[%clk 0:01:12]}  Rb2 {[%clk 0:00:57]} 31. b4 {[%clk 0:01:08]}  a4 {[%clk 0:00:53]} 32. Be3 {[%clk 0:01:01]}  Rb3 {[%clk 0:00:50]} 33. b5 {[%clk 0:01:02]}  Rxb5 {[%clk 0:00:49]} 34. Rxa4 {[%clk 0:01:02]}  Kg7 {[%clk 0:00:47]} 35. Rb4 {[%clk 0:00:54]}  Rd5 {[%clk 0:00:43]} 36. a4 {[%clk 0:00:54]}  Rd3 {[%clk 0:00:41]} 37. a5 {[%clk 0:00:48]}  Ra3 {[%clk 0:00:41]} 38. Rb5 {[%clk 0:00:49]}  Kf6 {[%clk 0:00:37]} 39. Kg3 {[%clk 0:00:46]}  Nd4 {[%clk 0:00:29]} 40. Rb6+ {[%clk 0:00:38]}  Kf5 {[%clk 0:00:27]} 41. a6 {[%clk 0:00:36]}  Nc2 {[%clk 0:00:19]} 42. Kf3 {[%clk 0:00:29]}  Nd4+ {[%clk 0:00:19]} 43. Kg2 {[%clk 0:00:28]}  Ne6 {[%clk 0:00:18]} 44. a7 {[%clk 0:00:26]}  Nxf4+ {[%clk 0:00:16]} 45. Bxf4 {[%clk 0:00:14]}  Kxf4 {[%clk 0:00:17]} 46. Rf6+ {[%clk 0:00:15]}  Kg5 {[%clk 0:00:16]} 47. Rxf7 {[%clk 0:00:16]}  h5 {[%clk 0:00:16]} 48. Kh2 {[%clk 0:00:13]}  Ra2 {[%clk 0:00:15]} 49. Kg3 {[%clk 0:00:13]}  Ra3+ {[%clk 0:00:15]} 50. Kg2 {[%clk 0:00:13]}  Ra2 {[%clk 0:00:16]} 51. Rb7 {[%clk 0:00:14]}  Ra3 {[%clk 0:00:15]} 52. Rb5+ {[%clk 0:00:14]}  Kh6 {[%clk 0:00:14]} 53. Rb7 {[%clk 0:00:14]}  Ra2 {[%clk 0:00:14]} 54. h4 {[%clk 0:00:14]}  Ra4 {[%clk 0:00:14]} 55. Kf3 {[%clk 0:00:14]}  Ra3+ {[%clk 0:00:14]} 56. Ke4 {[%clk 0:00:14]}  Ra4+ {[%clk 0:00:14]} 57. Kd5 {[%clk 0:00:15]}  Ra2 {[%clk 0:00:15]} 58. Kd6 {[%clk 0:00:14]}  Rd2+ {[%clk 0:00:14]} 59. Kc7 {[%clk 0:00:14]}  Rc2+ {[%clk 0:00:14]} 60. Kb8 {[%clk 0:00:14]}  Rxf2 {[%clk 0:00:13]} 61. a8=Q {[%clk 0:00:13]}  Rf8+ {[%clk 0:00:13]} 62. Ka7 {[%clk 0:00:13]}  Rxa8+ {[%clk 0:00:14]} 63. Kxa8 {[%clk 0:00:14]}  g5 {[%clk 0:00:14]} 64. Rb6+ {[%clk 0:00:15]}  Kg7 {[%clk 0:00:14]} 65. hxg5 {[%clk 0:00:16]}  h4 {[%clk 0:00:15]} 66. Rh6 {[%clk 0:00:16]}  h3 {[%clk 0:00:15]} 67. Rxh3 {[%clk 0:00:17]}  Kg6 {[%clk 0:00:16]} 68. Rg3 {[%clk 0:00:17]} 1-0


[Site "https://www.chess.com"]

[Event "Titled Tuesday Blitz March 08 Early 2022"]
[White "Aggelis, Nikolaos"]
[Black "Vasquez Schroeder, Rodrigo"]
[WhiteFideId "4213220"]
[BlackFideId "3400042"]
[WhiteElo "2154"]
[BlackElo "2561"]
[Result "0-1"]
[Round "03"]
[TimeControl "180+1"]
[Date "2022.03.09"]
[WhiteClock "0:00:31"]
[BlackClock "0:01:32"]

1. d4 {[%clk 0:03:00]}  Nf6 {[%clk 0:02:58]} 2. g3 {[%clk 0:03:00]}  d5 {[%clk 0:02:54]} 3. Nf3 {[%clk 0:02:59]}  g6 {[%clk 0:02:54]} 4. Bg2 {[%clk 0:02:59]}  Bg7 {[%clk 0:02:54]} 5. O-O {[%clk 0:03:00]}  O-O {[%clk 0:02:54]} 6. c4 {[%clk 0:03:00]}  dxc4 {[%clk 0:02:52]} 7. Na3 {[%clk 0:03:00]}  Be6 {[%clk 0:02:52]} 8. Qc2 {[%clk 0:02:38]}  Nc6 {[%clk 0:02:51]} 9. Nxc4 {[%clk 0:02:32]}  Nxd4 {[%clk 0:02:49]} 10. Nxd4 {[%clk 0:02:33]}  Qxd4 {[%clk 0:02:49]} 11. Na5 {[%clk 0:02:34]}  c6 {[%clk 0:02:30]} 12. Be3 {[%clk 0:02:31]}  Qb4 {[%clk 0:02:28]} 13. Bd2 {[%clk 0:02:25]}  Qb6 {[%clk 0:02:28]} 14. Nc4 {[%clk 0:02:24]}  Bxc4 {[%clk 0:02:27]} 15. Qxc4 {[%clk 0:02:24]}  Rfd8 {[%clk 0:02:26]} 16. Be3 {[%clk 0:02:22]}  Qc7 {[%clk 0:02:27]} 17. b4 {[%clk 0:02:18]}  Nd5 {[%clk 0:02:25]} 18. Bd4 {[%clk 0:01:56]}  Nb6 {[%clk 0:02:20]} 19. Bxb6 {[%clk 0:01:53]}  axb6 {[%clk 0:02:19]} 20. Rad1 {[%clk 0:01:51]}  b5 {[%clk 0:02:18]} 21. Rxd8+ {[%clk 0:01:49]}  Rxd8 {[%clk 0:02:17]} 22. Qc2 {[%clk 0:01:46]}  Qd6 {[%clk 0:02:16]} 23. a3 {[%clk 0:01:43]}  Qd2 {[%clk 0:02:15]} 24. Qxd2 {[%clk 0:01:42]}  Rxd2 {[%clk 0:02:16]} 25. e3 {[%clk 0:01:34]}  Bb2 {[%clk 0:02:15]} 26. Bh3 {[%clk 0:01:31]}  e6 {[%clk 0:02:14]} 27. Rb1 {[%clk 0:01:27]}  Bxa3 {[%clk 0:02:14]} 28. Rb3 {[%clk 0:01:26]}  Bb2 {[%clk 0:02:12]} 29. Kf1 {[%clk 0:01:19]}  Be5 {[%clk 0:02:10]} 30. Ke1 {[%clk 0:01:14]}  Rc2 {[%clk 0:02:08]} 31. Bg4 {[%clk 0:01:12]}  Kf8 {[%clk 0:02:06]} 32. Bd1 {[%clk 0:01:09]}  Ra2 {[%clk 0:02:05]} 33. f4 {[%clk 0:01:06]}  Bf6 {[%clk 0:02:05]} 34. Be2 {[%clk 0:01:04]}  Ke7 {[%clk 0:02:04]} 35. e4 {[%clk 0:01:02]}  Bd4 {[%clk 0:02:04]} 36. Rd3 {[%clk 0:00:59]}  e5 {[%clk 0:02:02]} 37. fxe5 {[%clk 0:00:55]}  Bxe5 {[%clk 0:02:02]} 38. Kd1 {[%clk 0:00:55]}  Rb2 {[%clk 0:02:01]} 39. Bg4 {[%clk 0:00:55]}  Rxb4 {[%clk 0:01:57]} 40. Rd7+ {[%clk 0:00:55]}  Kf6 {[%clk 0:01:57]} 41. Rxb7 {[%clk 0:00:55]}  h5 {[%clk 0:01:53]} 42. Bd7 {[%clk 0:00:56]}  Rc4 {[%clk 0:01:53]} 43. Ke2 {[%clk 0:00:53]}  Rxe4+ {[%clk 0:01:49]} 44. Kf3 {[%clk 0:00:54]}  Rc4 {[%clk 0:01:45]} 45. Rb6 {[%clk 0:00:54]}  Ke7 {[%clk 0:01:40]} 46. Bxc6 {[%clk 0:00:52]}  Bc7 {[%clk 0:01:40]} 47. Ra6 {[%clk 0:00:49]}  b4 {[%clk 0:01:40]} 48. Bd5 {[%clk 0:00:47]}  Rc3+ {[%clk 0:01:40]} 49. Ke2 {[%clk 0:00:43]}  b3 {[%clk 0:01:39]} 50. Rc6 {[%clk 0:00:42]}  Rxc6 {[%clk 0:01:36]} 51. Bxc6 {[%clk 0:00:43]}  Be5 {[%clk 0:01:36]} 52. Kf3 {[%clk 0:00:33]}  f5 {[%clk 0:01:33]} 53. h3 {[%clk 0:00:31]}  b2 {[%clk 0:01:32]} 0-1


[Site "https://www.chess.com"]